bitfinex/quotes_SOLUSD_20230402
["timestamp","ask_amount","ask_price","bid_price","bid_amount"]
[1680464607392,10.0,20.283,20.256,17.3029027]
[1680464607703,10.0,20.283,20.26,43.48]
[1680464607886,10.0,20.285,20.261,156.3363]
[1680464608086,10.0,20.285,20.262,117.482]
[1680464608393,10.0,20.285,20.263,47.0]
[1680464608707,10.0,20.285,20.264,10.0]
[1680464608888,10.0,20.285,20.265,37.0]
[1680464609215,1.724,20.292,20.27,43.45]
[1680464609389,1.724,20.292,20.271,47.0]
[1680464609901,1.724,20.292,20.272,7.3029027]
[1680464610101,1.724,20.292,20.273,37.0]
[1680464610490,1.724,20.292,20.274,7.3029027]
[1680464610685,1.724,20.292,20.275,37.0]
[1680464611107,1.724,20.292,20.276,7.3029027]
[1680464611307,1.724,20.292,20.277,37.0]
[1680464611686,1.724,20.292,20.278,7.3029027]
[1680464611901,1.724,20.292,20.279,37.0]
[1680464612286,1.724,20.292,20.28,7.3029027]
[1680464612505,1.724,20.292,20.281,17.0]
[1680464612889,1.724,20.292,20.282,17.3029027]
[1680464613091,1.724,20.292,20.283,17.0]
[1680464613511,1.724,20.292,20.283,27.0]
[1680464614407,1.724,20.292,20.288,19.693256]
[1680464614698,0.0001,20.292,20.288,19.693256]
[1680464614892,0.0001,20.292,20.289,10.0]
[1680464615087,1.7241,20.292,20.29,20.0]
[1680464615303,3.448,20.299,20.29,20.0]
[1680464615500,3.448,20.299,20.291,10.0]
[1680464616097,1.724,20.292,20.291,10.0]
[1680464616406,3.448,20.299,20.291,10.0]
[1680464616703,3.448,20.299,20.29,20.0]
[1680464617003,3.448,20.299,20.292,10.0]
[1680464617994,3.448,20.299,20.291,10.0]
[1680464621810,3.448,20.299,20.29,20.0]
[1680464622601,3.448,20.299,20.29,10.0]
[1680464624106,3.448,20.299,20.289,20.0]
[1680464624303,3.448,20.299,20.29,10.0]
[1680464625123,3.448,20.299,20.289,20.0]
[1680464626416,3.448,20.299,20.29,10.0]
[1680464627213,3.448,20.299,20.289,20.0]
[1680464627913,3.448,20.299,20.288,19.693256]
[1680464630212,3.448,20.299,20.289,10.0]
[1680464632119,3.448,20.299,20.291,10.0]
[1680464633597,3.448,20.299,20.29,20.0]
[1680464633810,3.448,20.299,20.288,10.0]
[1680464634010,3.448,20.299,20.29,10.0]
[1680464634721,3.448,20.299,20.289,20.0]
[1680464635417,3.448,20.299,20.287,20.0]
[1680464635615,3.448,20.299,20.288,10.0]
[1680464635820,3.448,20.299,20.289,20.0]
[1680464636627,3.448,20.299,20.285,117.2158]
[1680464637013,3.448,20.299,20.286,10.0]
[1680464639628,3.448,20.299,20.287,7.3029027]
[1680464639815,3.448,20.299,20.288,30.0]
[1680464640125,3.448,20.299,20.289,17.3029027]
[1680464640623,3.448,20.299,20.291,10.0]
[1680464642038,3.448,20.299,20.291,9.0]
[1680464642528,10.0,20.315,20.293,10.0]
[1680464642827,10.0,20.315,20.295,10.0]
[1680464643328,10.0,20.315,20.293,7.3029027]
[1680464643515,10.0,20.315,20.291,9.0]
[1680464643911,10.0,20.315,20.291,16.3029027]
[1680464644219,3.448,20.299,20.291,16.3029027]
[1680464644620,3.448,20.299,20.291,7.3029027]
[1680464644820,3.448,20.299,20.29,20.0]
[1680464645021,3.448,20.299,20.286,20.0]
[1680464645220,3.448,20.299,20.287,7.3029027]
[1680464645420,3.448,20.299,20.288,20.0]
[1680464645827,3.448,20.299,20.288,27.3029027]
[1680464646017,3.448,20.299,20.289,10.0]
[1680464646218,3.448,20.299,20.29,20.0]
[1680464646416,3.448,20.299,20.288,7.3029027]
[1680464646728,3.448,20.299,20.285,117.2158]
[1680464648040,3.448,20.299,20.284,114.8409]
[1680464648245,10.7509027,20.299,20.284,114.8409]
[1680464648422,10.0,20.297,20.284,114.8409]
[1680464649033,17.3029027,20.297,20.284,114.8409]
[1680464649337,17.3029027,20.297,20.286,19.696281]
[1680464651338,10.0,20.297,20.286,19.696281]
[1680464653632,17.0,20.294,20.286,19.696281]
[1680464655221,10.0,20.295,20.286,19.696281]
[1680464655440,10.0,20.297,20.286,19.696281]
[1680464655744,3.448,20.299,20.286,19.696281]
[1680464656325,3.448,20.299,20.287,10.0]
[1680464658727,3.448,20.299,20.288,20.0]
[1680464659126,3.448,20.299,20.289,10.0]
[1680464659356,3.448,20.299,20.291,10.0]
[1680464659922,21.42288,20.312,20.293,10.0]
[1680464660450,10.0,20.311,20.293,10.0]
[1680464661123,3.448,20.299,20.293,10.0]
[1680464661324,10.0,20.311,20.293,10.0]
[1680464661638,10.0,20.311,20.295,10.0]
[1680464661943,10.0,20.311,20.297,10.0]
[1680464662246,3.448,20.299,20.295,10.0]
[1680464662449,10.0,20.311,20.297,10.0]
[1680464663129,3.448,20.299,20.297,10.0]
[1680464664022,21.42288,20.312,20.298,20.0]
[1680464664247,3.448,20.299,20.298,20.0]
[1680464664421,21.42288,20.312,20.299,10.0]
[1680464664633,21.42288,20.312,20.3,20.0]
[1680464664940,21.42288,20.312,20.301,27.0]
[1680464665135,21.42288,20.312,20.301,34.3029027]
[1680464665340,10.0,20.321,20.302,7.3029027]
[1680464665531,10.0,20.321,20.302,129.7855027]
[1680464665852,1.723,20.312,20.303,10.0]
[1680464666051,1.723,20.312,20.302,10.0]
[1680464668059,1.723,20.312,20.3,20.0]
[1680464668358,1.723,20.312,20.301,10.0]
[1680464670555,1.723,20.312,20.303,10.0]
[1680464672149,10.0,20.321,20.303,10.0]
[1680464673053,1.723,20.312,20.303,10.0]
[1680464673252,1.723,20.312,20.301,10.0]
[1680464676342,1.723,20.312,20.303,10.0]
[1680464676659,1.723,20.312,20.304,7.3029027]
[1680464676848,1.723,20.312,20.305,10.0]
[1680464677044,1.723,20.312,20.307,10.0]
[1680464677234,1.723,20.312,20.309,10.0]
[1680464677442,1.723,20.312,20.31,20.0]
[1680464677640,1.723,20.312,20.311,10.0]
[1680464677971,24.7247609,20.327,20.311,10.0]
[1680464678871,10.0,20.327,20.311,10.0]
[1680464679043,1.723,20.312,20.309,10.0]
[1680464679250,10.0,20.327,20.311,10.0]
[1680464680447,10.0,20.327,20.313,10.0]
[1680464681666,10.0,20.327,20.307,10.0]
[1680464682051,10.0,20.325,20.307,10.0]
[1680464682379,10.0,20.323,20.307,10.0]
[1680464682561,10.0,20.321,20.307,10.0]
[1680464683873,10.0,20.321,20.303,10.0]
[1680464685679,10.0,20.319,20.3,30.0]
[1680464685967,10.0,20.317,20.3,30.0]
[1680464686266,10.0,20.315,20.3,30.0]
[1680464686772,17.3029027,20.315,20.3,30.0]
[1680464687354,7.3029027,20.315,20.3,30.0]
[1680464687574,10.0,20.317,20.3,30.0]
[1680464687758,17.3029027,20.317,20.3,30.0]
[1680464687960,10.0,20.315,20.3,30.0]
[1680464688355,17.3029027,20.315,20.3,30.0]
[1680464688553,17.3029027,20.315,20.3,20.0]
[1680464688760,17.0,20.314,20.3,20.0]
[1680464689067,10.0,20.313,20.3,20.0]
[1680464689370,10.0,20.311,20.3,20.0]
[1680464689876,10.0,20.313,20.3,20.0]
[1680464690453,10.0,20.313,20.301,10.0]
[1680464690768,10.0,20.315,20.301,10.0]
[1680464691157,7.3029027,20.314,20.301,10.0]
[1680464692454,10.0,20.316,20.301,10.0]
[1680464693772,45.94,20.32,20.301,10.0]
[1680464693964,10.0,20.317,20.301,10.0]
[1680464694169,17.0,20.316,20.301,10.0]
[1680464694554,67.94951412,20.323,20.301,10.0]
[1680464694970,46.18,20.32,20.301,10.0]
[1680464695453,17.3029027,20.319,20.301,10.0]
[1680464695857,27.3029027,20.318,20.301,10.0]
[1680464696073,27.0,20.317,20.301,10.0]
[1680464696259,20.0,20.316,20.3,20.0]
[1680464696575,45.74,20.31,20.3,20.0]
[1680464696756,10.0,20.309,20.3,20.0]
[1680464696957,34.3029027,20.309,20.3,20.0]
[1680464698082,24.3029027,20.309,20.3,20.0]
[1680464698973,7.3029027,20.308,20.3,20.0]
[1680464699159,27.0,20.307,20.3,20.0]
[1680464699355,17.0,20.307,20.3,20.0]
[1680464699578,7.3029027,20.308,20.3,20.0]
[1680464700280,10.0,20.306,20.3,20.0]
[1680464701160,17.0,20.307,20.3,20.0]
[1680464701572,17.0,20.307,20.288,112.4438]
[1680464701573,17.3029027,20.306,20.288,112.4438]
[1680464701765,17.0,20.305,20.289,20.0]
[1680464701966,10.0,20.304,20.289,20.0]
[1680464702185,46.18,20.3,20.278,14.58460071]
[1680464702356,46.18,20.3,20.285,10.0]
[1680464702357,27.0,20.299,20.285,10.0]
[1680464702560,10.0,20.299,20.285,10.0]
[1680464704081,10.0,20.297,20.285,10.0]
[1680464704681,17.0,20.298,20.285,10.0]
[1680464704896,17.0,20.298,20.279,10.0]
[1680464705068,24.3029027,20.298,20.279,10.0]
[1680464705268,10.0,20.297,20.279,10.0]
[1680464706190,10.0,20.297,20.275,10.0]
[1680464706481,10.0,20.297,20.277,15.00431324]
[1680464706689,10.0,20.297,20.278,30.0]
[1680464706873,7.3029027,20.297,20.278,30.0]
[1680464707192,46.18,20.3,20.278,37.3029027]
[1680464707367,17.3029027,20.304,20.278,37.3029027]
[1680464707568,10.0,20.304,20.278,37.3029027]
[1680464707784,10.0,20.304,20.279,17.0]
[1680464707972,10.0,20.304,20.28,66.24]
[1680464708276,10.0,20.304,20.281,10.0]
[1680464708488,17.3029027,20.304,20.281,10.0]
[1680464708988,10.0,20.299,20.281,10.0]
[1680464709282,24.3029027,20.298,20.281,10.0]
[1680464709477,10.0,20.297,20.281,10.0]
[1680464709677,10.0,20.295,20.281,10.0]
[1680464711184,17.3029027,20.297,20.281,10.0]
[1680464711390,10.0,20.302,20.281,10.0]
[1680464711575,7.3029027,20.301,20.281,10.0]
[1680464711771,7.3029027,20.301,20.282,17.0]
[1680464712072,10.0,20.302,20.283,10.0]
[1680464712273,10.0,20.302,20.285,10.0]
[1680464712481,7.3029027,20.304,20.287,10.0]
[1680464713893,7.3029027,20.304,20.285,10.0]
[1680464714074,17.0,20.303,20.285,10.0]
[1680464714275,10.0,20.302,20.285,10.0]
[1680464714481,10.0,20.3,20.285,10.0]
[1680464715065,10.0,20.3,20.284,114.2739]
[1680464715270,17.0,20.299,20.284,114.2739]
[1680464715495,10.0,20.298,20.284,114.2739]
[1680464715696,17.0,20.297,20.284,114.2739]
[1680464715983,24.3029027,20.297,20.284,114.2739]
[1680464716184,10.0,20.296,20.284,114.2739]
[1680464716694,9.5,20.296,20.284,114.2739]
[1680464716985,10.0,20.294,20.275,10.0]
[1680464717193,17.0,20.293,20.275,118.7339]
[1680464717415,57.87,20.29,20.275,118.7339]
[1680464717688,10.0,20.289,20.275,118.7339]
[1680464718982,10.0,20.289,20.275,108.7339]
[1680464719375,10.0,20.287,20.275,108.7339]
[1680464719775,17.0,20.286,20.275,108.7339]
[1680464719980,10.0,20.285,20.279,24.302903]
[1680464725081,17.0,20.284,20.279,24.302903]
[1680464725592,10.0,20.283,20.279,24.302903]
[1680464725795,17.0,20.282,20.279,24.302903]
[1680464726099,10.0,20.281,20.279,24.302903]
[1680464726675,17.0,20.282,20.279,24.302903]
[1680464726879,10.0,20.287,20.279,24.302903]
[1680464727078,234.22446983,20.299,20.279,24.302903]
[1680464727683,9.5,20.296,20.279,24.302903]
[1680464729791,10.0,20.292,20.279,24.302903]
[1680464730096,10.0,20.29,20.279,24.302903]
[1680464730297,17.0,20.289,20.279,24.302903]
[1680464730501,10.0,20.288,20.279,24.302903]
[1680464730984,10.0,20.286,20.279,24.302903]
[1680464731679,10.0,20.284,20.279,24.302903]
[1680464732299,10.0,20.286,20.279,24.302903]
[1680464732480,10.0,20.284,20.279,24.302903]
[1680464732909,10.0,20.286,20.279,24.302903]
[1680464733084,10.0,20.288,20.279,24.302903]
[1680464733979,10.0,20.295,20.279,24.302903]
[1680464734297,10.0,20.299,20.28,17.3029027]
[1680464734491,112.4856,20.308,20.28,190.3475027]
[1680464734687,20.0,20.307,20.281,24.3029027]
[1680464735006,20.0,20.307,20.282,7.3029027]
[1680464735191,10.0,20.306,20.283,17.0]
[1680464735502,10.0,20.306,20.284,146.3516027]
[1680464735682,10.0,20.306,20.285,17.0]
[1680464736012,10.0,20.306,20.285,24.3029027]
[1680464736300,10.0,20.306,20.286,37.3029027]
[1680464736689,10.0,20.306,20.287,7.3029027]
[1680464736891,10.0,20.306,20.288,20.0]
[1680464737409,17.0,20.305,20.289,10.0]
[1680464738007,10.0,20.304,20.289,10.0]
[1680464738189,18.723,20.303,20.29,110.4156]
[1680464738593,18.723,20.303,20.291,10.0]
[1680464738799,1.723,20.303,20.291,10.0]
[1680464743205,18.723,20.303,20.291,10.0]
[1680464743702,18.723,20.303,20.29,110.4156]
[1680464744103,57.42,20.3,20.29,110.4156]
[1680464744291,27.0,20.299,20.29,110.4156]
[1680464744696,17.0,20.299,20.29,110.4156]
[1680464745006,16.5,20.299,20.29,110.4156]
[1680464745802,57.42,20.3,20.29,110.4156]
[1680464746202,1.723,20.303,20.29,110.4156]
[1680464746502,1.723,20.303,20.291,10.0]
[1680464747915,18.723,20.303,20.29,110.4156]
[1680464748202,10.0,20.302,20.29,110.4156]
[1680464748506,17.0,20.301,20.29,110.4156]
[1680464748710,10.0,20.3,20.29,110.4156]
[1680464748899,17.0,20.299,20.29,110.4156]
[1680464749100,10.0,20.298,20.29,110.4156]
[1680464749605,10.0,20.302,20.29,110.4156]
[1680464749918,10.0,20.3,20.29,110.4156]
[1680464750213,10.0,20.302,20.29,110.4156]
[1680464750810,17.0,20.301,20.29,110.4156]
[1680464751108,10.0,20.3,20.29,110.4156]
[1680464752312,17.0,20.301,20.29,110.4156]
[1680464754610,17.0,20.301,20.27,57.8]
[1680464754813,10.0,20.3,20.279,10.0]
[1680464755010,17.3029027,20.3,20.279,10.0]
[1680464755308,17.3029027,20.3,20.278,116.6427]
[1680464755309,57.42,20.29,20.278,116.6427]
[1680464755520,10.0,20.289,20.278,116.6427]
[1680464755811,57.42,20.29,20.28,19.701073]
[1680464756002,10.0,20.288,20.28,19.701073]
[1680464756416,17.0,20.289,20.28,19.701073]
[1680464757000,57.42,20.29,20.28,19.701073]
[1680464757001,57.5,20.29,20.281,10.0]
[1680464758413,57.5,20.29,20.28,19.701073]
[1680464764615,7.3029027,20.299,20.281,10.0]
[1680464764933,57.5,20.3,20.281,10.0]
[1680464765822,56.1970769,20.3,20.281,10.0]
[1680464766811,10.0,20.299,20.281,10.0]
[1680464768318,17.0,20.298,20.28,19.701073]
[1680464768519,10.0,20.297,20.28,19.701073]
[1680464768722,10.0,20.295,20.28,19.701073]
[1680464769221,57.42,20.29,20.28,19.701073]
[1680464769420,10.0,20.289,20.28,19.701073]
[1680464771527,10.0,20.289,20.275,116.6427]
[1680464772008,10.0,20.289,20.276,10.0]
[1680464773717,57.89,20.29,20.276,10.0]
[1680464774322,10.0,20.297,20.277,17.0]
[1680464774521,57.39,20.3,20.278,20.0]
[1680464774826,1.723,20.303,20.28,57.72]
[1680464775015,1.723,20.303,20.281,17.0]
[1680464775223,1.723,20.303,20.281,34.3029027]
[1680464775524,1.723,20.303,20.282,7.3029027]
[1680464775719,1.723,20.303,20.283,17.0]
[1680464776214,1.723,20.303,20.284,10.0]
[1680464776421,1.723,20.303,20.285,128.6397]
[1680464776912,1.723,20.303,20.286,10.0]
[1680464780914,10.0,20.302,20.286,10.0]
[1680464783718,39.421188,20.302,20.286,10.0]
[1680464784042,39.421188,20.302,20.288,10.0]
[1680464784333,39.421188,20.302,20.29,10.0]
[1680464784627,3.446,20.309,20.292,10.0]
[1680464784821,3.446,20.309,20.293,17.0]
[1680464785010,3.446,20.309,20.294,10.0]
[1680464785728,3.446,20.309,20.294,17.3029027]
[1680464786121,1.723,20.303,20.294,17.3029027]
[1680464786318,3.446,20.309,20.295,10.0]
[1680464787119,1.723,20.303,20.295,10.0]
[1680464788736,1.723,20.303,20.292,10.0]
[1680464788926,1.723,20.303,20.29,117.776]
[1680464790227,1.723,20.303,20.291,10.0]
[1680464793744,1.723,20.303,20.29,117.776]
[1680464794442,13.446,20.309,20.291,10.0]
[1680464794626,3.446,20.309,20.293,10.0]
[1680464795136,1.723,20.303,20.293,10.0]
[1680464798444,1.723,20.303,20.295,10.0]
[1680464803147,1.723,20.303,20.291,10.0]
[1680464804232,1.723,20.303,20.291,17.3029027]
[1680464804546,1.723,20.303,20.291,10.0]
[1680464805944,1.723,20.303,20.293,10.0]
[1680464807253,1.723,20.303,20.291,10.0]
[1680464807453,1.723,20.303,20.29,117.776]
[1680464808250,1.723,20.303,20.291,10.0]
[1680464808451,1.723,20.303,20.29,117.776]
[1680464812537,1.723,20.303,20.291,10.0]
[1680464813254,1.723,20.303,20.29,117.776]
[1680464815443,1.723,20.303,20.292,10.0]
[1680464815642,1.723,20.303,20.291,29.691844]
[1680464816169,1.723,20.303,20.291,19.691844]
[1680464816345,1.723,20.303,20.292,10.0]
[1680464817659,1.723,20.303,20.291,29.691844]
[1680464817851,1.723,20.303,20.291,19.691844]
[1680464819153,57.76,20.3,20.291,19.691844]
[1680464819358,10.0,20.299,20.291,19.691844]
[1680464820258,10.0,20.299,20.291,19.191844]
[1680464821158,10.0,20.297,20.291,19.191844]
[1680464826968,10.0,20.299,20.291,19.191844]
[1680464827150,43.4,20.3,20.291,19.191844]
[1680464828458,10.0,20.299,20.291,19.191844]
[1680464829155,10.0,20.299,20.285,10.0]
[1680464829356,10.0,20.299,20.284,109.4903]
[1680464831365,10.0,20.297,20.284,109.4903]
[1680464831765,10.0,20.295,20.284,109.4903]
[1680464831968,42.98,20.3,20.284,109.4903]
[1680464832267,10.0,20.305,20.285,10.0]
[1680464832480,1.723,20.303,20.285,17.3029027]
[1680464832664,1.723,20.303,20.286,17.0]
[1680464832861,1.723,20.303,20.287,10.0]
[1680464842880,1.723,20.303,20.285,10.0]
[1680464843579,1.723,20.303,20.284,109.4903]
[1680464843580,43.32,20.3,20.284,109.4903]
[1680464843876,10.0,20.299,20.284,109.4903]
[1680464846767,10.0,20.297,20.284,109.4903]
[1680464847071,10.0,20.295,20.284,109.4903]
[1680464852589,1.723,20.303,20.284,109.4903]
[1680464852886,1.723,20.303,20.285,10.0]
[1680464853068,1.723,20.303,20.286,20.0]
[1680464853270,1.723,20.303,20.287,17.0]
[1680464853492,1.723,20.303,20.288,20.0]
[1680464853777,1.723,20.303,20.289,27.0]
[1680464854081,1.723,20.303,20.29,20.0]
[1680464854278,1.723,20.303,20.291,17.0]
[1680464854484,1.723,20.303,20.292,115.765]
[1680464855472,1.723,20.303,20.293,10.0]
[1680464857889,1.723,20.303,20.292,115.765]
[1680464858290,1.723,20.303,20.293,10.0]
[1680464858498,1.723,20.303,20.293,27.0]
[1680464860697,42.98,20.31,20.293,27.0]
[1680464860875,1.723,20.303,20.293,27.0]
[1680464864497,1.723,20.303,20.293,10.0]
[1680464865397,1.723,20.303,20.295,10.0]
[1680464865593,1.723,20.303,20.296,17.0]
[1680464865797,1.723,20.303,20.297,10.0]
[1680464866397,3.446,20.309,20.297,10.0]
[1680464866596,1.723,20.303,20.299,10.0]
[1680464866804,10.0,20.316,20.301,10.0]
[1680464867097,10.0,20.317,20.301,10.0]
[1680464867400,10.0,20.327,20.302,17.0]
[1680464867697,10.0,20.327,20.303,10.0]
[1680464867888,3.446,20.309,20.304,17.0]
[1680464868212,10.0,20.327,20.304,17.0]
[1680464868505,10.0,20.327,20.305,10.0]
[1680464868711,20.0,20.326,20.306,17.0]
[1680464869213,3.446,20.309,20.307,10.0]
[1680464869386,10.0,20.325,20.308,17.0]
[1680464869710,10.0,20.325,20.31,43.32]
[1680464869919,10.0,20.329,20.311,133.2309]
[1680464870203,10.0,20.333,20.311,143.2309]
[1680464870401,10.0,20.333,20.312,10.0]
[1680464870604,10.0,20.336,20.312,10.0]
[1680464870605,10.0,20.336,20.313,17.0]
[1680464870792,10.0,20.336,20.314,10.0]
[1680464870998,10.0,20.336,20.315,20.0]
[1680464871296,10.0,20.336,20.316,27.0]
[1680464871505,10.0,20.336,20.317,30.0]
[1680464871700,10.0,20.336,20.319,10.0]
[1680464871999,10.0,20.338,20.321,10.0]
[1680464872401,10.0,20.338,20.322,17.0]
[1680464872697,10.0,20.34,20.322,135.0886]
[1680464873201,10.0,20.34,20.323,10.0]
[1680464873403,10.0,20.34,20.325,10.0]
[1680464873704,10.0,20.34,20.326,17.0]
[1680464873905,10.0,20.34,20.325,6.5]
[1680464874092,9.5,20.34,20.325,10.0]
[1680464875592,9.5,20.34,20.327,10.0]
[1680464876794,9.5,20.34,20.323,10.0]
[1680464876993,9.5,20.34,20.325,10.0]
[1680464877311,17.0,20.339,20.325,10.0]
[1680464877530,10.0,20.338,20.325,10.0]
[1680464878101,10.0,20.338,20.323,10.0]
[1680464878593,9.5,20.34,20.323,10.0]
[1680464879109,9.5,20.34,20.325,10.0]
[1680464880709,10.0,20.344,20.325,10.0]
[1680464881410,10.0,20.344,20.327,10.0]
[1680464882301,10.0,20.342,20.327,10.0]
[1680464882917,17.0,20.341,20.327,10.0]
[1680464883209,10.0,20.342,20.327,10.0]
[1680464883710,10.0,20.344,20.327,10.0]
[1680464884997,17.0,20.343,20.325,10.0]
[1680464885307,10.0,20.344,20.327,10.0]
[1680464885505,10.0,20.345,20.329,10.0]
[1680464885704,10.0,20.346,20.329,10.0]
[1680464885905,10.0,20.346,20.331,10.0]
[1680464886105,19.680573,20.334,20.332,17.0]
[1680464886297,86.64,20.36,20.333,10.0]
[1680464886500,10.0,20.359,20.335,10.0]
[1680464886911,10.0,20.359,20.337,10.0]
[1680464887114,10.0,20.359,20.339,10.0]
[1680464887810,10.0,20.359,20.34,17.0]
[1680464888011,43.32,20.36,20.341,20.0]
[1680464888305,10.0,20.359,20.342,27.0]
[1680464889715,9.5,20.359,20.342,27.0]
[1680464889912,9.5,20.359,20.342,10.0]
[1680464890917,10.0,20.357,20.342,10.0]
[1680464891102,10.0,20.355,20.342,10.0]
[1680464891918,10.0,20.357,20.342,10.0]
[1680464892119,17.0,20.358,20.342,10.0]
[1680464892306,9.5,20.359,20.342,10.0]
[1680464892909,10.0,20.357,20.342,10.0]
[1680464893323,9.5,20.357,20.342,10.0]
[1680464894412,9.5,20.359,20.342,10.0]
[1680464894611,9.5,20.359,20.344,10.0]
[1680464895800,10.0,20.357,20.342,10.0]
[1680464896712,10.0,20.353,20.338,113.4058]
[1680464896905,10.0,20.351,20.339,10.0]
[1680464897103,10.0,20.353,20.339,10.0]
[1680464899330,10.0,20.355,20.339,10.0]
[1680464899509,10.0,20.353,20.339,10.0]
[1680464900717,37.0,20.354,20.339,10.0]
[1680464901320,10.0,20.353,20.339,10.0]
[1680464902130,20.0,20.354,20.339,10.0]
[1680464902324,10.0,20.355,20.339,10.0]
[1680464902525,10.0,20.353,20.339,10.0]
[1680464902718,20.0,20.354,20.339,10.0]
[1680464903626,214.6193,20.36,20.341,10.0]
[1680464903819,161.4893,20.36,20.342,17.0]
[1680464904020,43.13,20.36,20.342,17.0]
[1680464904219,43.13,20.36,20.343,10.0]
[1680464904421,43.13,20.36,20.344,17.0]
[1680464904721,43.13,20.36,20.345,10.0]
[1680464906933,10.0,20.358,20.345,10.0]
[1680464907544,10.0,20.358,20.343,10.0]
[1680464907731,20.0,20.357,20.339,10.0]
[1680464907935,9.5,20.356,20.338,10.0]
[1680464908139,20.0,20.355,20.338,10.0]
[1680464908433,10.0,20.354,20.338,10.0]
[1680464909028,10.0,20.354,20.34,10.0]
[1680464909231,9.5,20.356,20.341,37.0]
[1680464909533,9.5,20.356,20.342,10.0]
[1680464909725,9.5,20.356,20.344,10.0]
[1680464910823,10.0,20.354,20.342,10.0]
[1680464911023,10.0,20.354,20.344,10.0]
[1680464911223,17.0,20.353,20.343,20.0]
[1680464911421,10.0,20.354,20.343,20.0]
[1680464912023,10.0,20.354,20.342,10.0]
[1680464912332,10.0,20.354,20.343,20.0]
[1680464912729,10.0,20.352,20.343,20.0]
[1680464912925,17.0,20.351,20.339,20.0]
[1680464913130,10.0,20.35,20.34,10.0]
[1680464913438,17.0,20.349,20.341,20.0]
[1680464913945,10.0,20.352,20.341,20.0]
[1680464914438,10.0,20.352,20.34,10.0]
[1680464914638,10.0,20.352,20.342,10.0]
[1680464914844,10.0,20.354,20.343,20.0]
[1680464915347,10.0,20.352,20.343,20.0]
[1680464915533,10.0,20.352,20.342,10.0]
[1680464915855,10.0,20.352,20.343,20.0]